fUST/lending_fUST_20251123
["ID","MTS","AMOUNT","RATE_DAILY","PERIOD"]
[394667622,1763850791255,-10000.0,0.00038356,120]
[394667623,1763850791279,-10000.0,0.00038356,120]
[394667624,1763850791303,-10000.0,0.00038356,120]
[394667625,1763850791326,-10000.0,0.00038356,120]
[394667626,1763850791350,-10000.0,0.00038356,120]
[394667627,1763850791373,-10000.0,0.00038356,120]
[394667628,1763850791396,-10000.0,0.00038356,120]
[394667629,1763850791420,-10000.0,0.00038356,120]
[394667630,1763850791443,-10000.0,0.00038356,120]
[394667631,1763850791466,-10000.0,0.00038356,120]
[394667632,1763850791490,-10000.0,0.00038356,120]
[394667633,1763850791514,-10000.0,0.00038356,120]
[394667634,1763850791538,-10000.0,0.00038356,120]
[394667635,1763850791562,-10000.0,0.00038356,120]
[394667636,1763850791586,-10000.0,0.00038356,120]
[394667637,1763850791609,-10000.0,0.00038356,120]
[394667638,1763850791634,-10000.0,0.00038356,120]
[394667639,1763850791660,-10000.0,0.00038356,120]
[394667640,1763850791684,-10000.0,0.00038356,120]
[394667641,1763850791709,-10000.0,0.00038356,120]
[394667642,1763850791735,-10000.0,0.00038356,120]
[394667643,1763850791758,-10000.0,0.00038356,120]
[394667644,1763850791782,-10000.0,0.00038356,120]
[394667645,1763850791806,-10000.0,0.00038356,120]
[394667646,1763850791831,-10000.0,0.00038356,120]
[394667647,1763850791856,-10000.0,0.00038356,120]
[394667648,1763850791880,-10000.0,0.00038356,120]
[394667649,1763850791905,-10000.0,0.00038356,120]
[394667650,1763850791929,-10000.0,0.00038356,120]
[394667651,1763850791953,-10000.0,0.00038356,120]
[394667652,1763850791978,-10000.0,0.00038356,120]
[394667653,1763850792001,-10000.0,0.00038356,120]
[394667654,1763850792026,-10000.0,0.00038356,120]
[394667655,1763850792051,-10000.0,0.00038356,120]
[394667656,1763850792074,-10000.0,0.00038356,120]
[394667657,1763850792098,-2985.04223067,0.00038356,120]
[394667658,1763850792125,-151.0,0.000384,120]
[394667659,1763850792147,-205.725062,0.000384,39]
[394667660,1763850792170,-205.725062,0.000384,39]
[394667661,1763850792194,-408.12,0.000384,120]
[394667662,1763850792218,-2000.0,0.00038461,120]
[394667663,1763850792241,-2000.0,0.00038461,120]
[394667664,1763850792268,-408.12,0.000385,120]
[394667665,1763850792293,-4483.33,0.00038524,30]
[394667666,1763850792318,-408.12,0.000386,120]
[394667667,1763850792344,-408.12,0.000387,120]
[394667668,1763850792367,-183.0,0.00038745,120]
[394667669,1763850792391,-408.12,0.000388,120]
[394667670,1763850792414,-200.0,0.00038863,120]
[394667671,1763850792439,-408.12,0.000389,120]
[394667672,1763850792461,-151.53436869,0.00039,30]
[394667673,1763850792484,-3647.26473439,0.00039,30]
[394667674,1763850792507,-500.0,0.00039,120]
[394667675,1763850792530,-1189.37577733,0.00039,120]
[394667676,1763850792553,-1805.6617462,0.00039,120]
[394667677,1763850792578,-1000.0,0.00039,120]
[394667678,1763850792600,-1870.12932968,0.00039,30]
[394667679,1763850792622,-2000.0,0.00039,120]
[394667680,1763850792648,-62824.0,0.00039,60]
[394667681,1763850792677,-4000.0,0.00039,60]
[394667682,1763850792704,-408.12,0.00039,120]
[394667683,1763850792732,-408.12,0.000391,120]
[394667684,1763850792758,-408.12,0.000392,120]
[394667685,1763850792782,-200.0,0.00039221,120]
[394667686,1763850792806,-1887.36969055,0.000393,120]
[394667687,1763850792830,-4958.23127637,0.000393,120]
[394667688,1763850792993,-151.0,0.000393,120]
[394667689,1763850793025,-408.12,0.000393,120]
[394667690,1763850793051,-408.12,0.000394,120]
[394667691,1763850793075,-1797.5570331,0.000395,30]
[394667692,1763850793099,-408.12,0.000395,120]
[394667693,1763850793124,-408.12,0.000396,120]
[394667694,1763850793150,-557.4,0.000397,30]
[394667695,1763850793172,-35861.69063065,0.000397,30]
[394667696,1763850793750,-228.0,4.737e-05,2]
[394667697,1763850796264,-9772.01,4.738e-05,2]
[394667698,1763850796282,-10000.01,4.738e-05,2]
[394667699,1763850796314,-10000.01,4.738e-05,2]
[394667700,1763850796361,-10000.01,4.738e-05,2]
[394667701,1763850796375,-228.0,4.738e-05,2]
[394667702,1763850796388,-9544.01,4.738e-05,2]
[394667703,1763850796405,-10000.01,4.738e-05,2]
[394667704,1763850796419,-10000.01,4.738e-05,2]
[394667705,1763850796437,-10000.01,4.738e-05,2]
[394667706,1763850796742,-10000.01,4.738e-05,2]
[394667707,1763850796755,-10000.01,4.738e-05,2]
[394667708,1763850796815,-10000.01,4.738e-05,2]
[394667709,1763850800214,-1528.83441416,0.00031,120]
[394667710,1763850800240,-1528.83441416,0.000319,120]
[394667711,1763850800269,-1528.83441416,0.000329,120]
[394667712,1763850800294,-1528.83441416,0.000339,120]
[394667713,1763850800320,-1528.83441416,0.000349,120]
[394667714,1763850800356,-14138.30936935,0.000397,30]
[394667715,1763850800384,-408.12,0.000397,120]
[394667716,1763850800411,-1000.0,0.000398,120]
[394667717,1763850800438,-1000.0,0.000398,120]
[394667718,1763850800465,-1000.0,0.000398,120]
[394667719,1763850800491,-1000.0,0.000398,120]
[394667720,1763850800516,-1000.0,0.000398,120]
[394667721,1763850800539,-1000.0,0.000398,120]
[394667722,1763850800562,-1000.0,0.000398,90]
[394667723,1763850800587,-408.12,0.000398,120]
[394667724,1763850800609,-1880.87075903,0.00039877,120]
[394667725,1763850800632,-1721.57707454,0.0003989,120]
[394667726,1763850800658,-1059.5653796,0.000399,120]
[394667727,1763850800681,-30971.242746,0.000399,50]
[394667728,1763850800705,-2578.9898431,0.000399,120]
[394667729,1763850800729,-27361.0,0.000399,120]
[394667730,1763850800755,-408.12,0.000399,120]
[394667731,1763850800778,-1134.74596986,0.0004,30]
[394667732,1763850800802,-342.46538776,0.0004,120]
[394667733,1763850800825,-301.81595253,0.0004,30]
[394667734,1763850800849,-1000.0,0.0004,120]
[394667735,1763850800874,-300.0,0.0004,120]
[394667736,1763850800898,-5399.85920992,0.0004,120]
[394667737,1763850800923,-518.43255263,0.0004,120]
[394667738,1763850800949,-500.0,0.0004,120]
[394667739,1763850800974,-500.0,0.0004,120]
[394667740,1763850800998,-100000.0,0.0004,120]
[394667741,1763850801021,-1001.84,0.0004,120]
[394667742,1763850801046,-525.47977799,0.0004,30]
[394667743,1763850801068,-1098.85265002,0.0004,120]
[394667744,1763850801092,-742.029277,0.0004,120]
[394667745,1763850801116,-200.0,0.0004,120]
[394667746,1763850801141,-2725.21419835,0.0004,120]
[394667747,1763850801164,-2005.15,0.0004,60]
[394667748,1763850801188,-16256.65158017,0.0004,120]
[394667749,1763850801210,-2000.0,0.0004,120]
[394667750,1763850801234,-1514.75181248,0.0004,30]
[394667751,1763850801258,-1004.0,0.0004,120]
[394667752,1763850801281,-5000.0,0.0004,41]
[394667753,1763850801304,-2498.85138318,0.0004,120]
[394667754,1763850801327,-1278.90340184,0.0004,90]
[394667755,1763850801351,-2049.1453783,0.0004,120]
[394667756,1763850801374,-149.94843925,0.0004,120]
[394667757,1763850801560,-2000.0,0.0004,120]
[394667758,1763850801589,-408.12,0.0004,120]
[394667759,1763850801613,-2088.92757357,0.000401,120]
[394667760,1763850801636,-151.0,0.000401,120]
[394667761,1763850801666,-408.12,0.000401,120]
[394667762,1763850801690,-6213.107666,0.00040183,120]
[394667763,1763850801718,-408.12,0.000402,120]
[394667764,1763850801746,-408.12,0.000403,120]
[394667765,1763850801769,-4984.0,0.000404,60]
[394667766,1763850801792,-1887.36969055,0.000404,120]
[394667767,1763850801817,-408.12,0.000404,120]
[394667768,1763850801842,-408.12,0.000405,120]
[394667769,1763850801867,-408.12,0.000406,120]
[394667770,1763850801892,-408.12,0.000407,120]
[394667771,1763850801917,-408.12,0.000408,120]
[394667772,1763850801941,-2500.0,0.000409,120]
[394667773,1763850801965,-408.6487037,0.000409,120]
[394667774,1763850801989,-1000.0,0.00041,120]
[394667775,1763850802013,-500027.27120924,0.00041,120]
[394667776,1763850802036,-1500.0,0.00041,120]
[394667777,1763850802060,-1000.0,0.00041,120]
[394667778,1763850802082,-150.0,0.00041,120]
[394667779,1763850802104,-2000.0,0.00041,120]
[394667780,1763850802127,-173.0,0.00041,120]
[394667781,1763850802150,-151.0,0.00041,120]
[394667782,1763850802177,-1398.15,0.00041096,120]
[394667783,1763850802203,-3309.82,0.00041096,120]
[394667784,1763850802227,-500.0,0.00041096,31]
[394667785,1763850802249,-500.0,0.00041096,31]
[394667786,1763850802273,-500.0,0.00041096,31]
[394667787,1763850802296,-500.0,0.00041096,31]
[394667788,1763850802320,-500.0,0.00041096,31]
[394667789,1763850802343,-207.11755789,0.00041096,31]
[394667790,1763850802367,-500.0,0.00041096,31]
[394667791,1763850802390,-411.90195088,0.00041096,31]
[394667792,1763850802413,-500.0,0.00041096,31]
[394667793,1763850802439,-200.0,0.00041245,120]
[394667794,1763850802463,-200.0,0.00041245,120]
[394667795,1763850802487,-200.0,0.00041245,120]
[394667796,1763850802510,-200.0,0.00041246,120]
[394667797,1763850802540,-200.0,0.00041246,120]
[394667798,1763850802563,-200.0,0.00041246,120]
[394667799,1763850802587,-500.0,0.000414,120]
[394667800,1763850802610,-5000.0,0.00041741,30]
[394667801,1763850802634,-220.92491344,0.000418,60]
[394667802,1763850802662,-2500.0,0.000419,120]
[394667803,1763850802686,-151.0,0.000419,120]
[394667804,1763850802711,-460.59570505,0.00042,120]
[394667805,1763850802736,-1000.0,0.00042,120]
[394667806,1763850802760,-500.0,0.00042,120]
[394667807,1763850802784,-1014.0,0.00042,120]
[394667808,1763850802807,-208.82958392,0.00042,120]
[394667809,1763850802831,-150.0,0.00042,120]
[394667810,1763850802854,-2000.0,0.00042,120]
[394667811,1763850802877,-150.0,0.00042,120]
[394667812,1763850802900,-1803.49930232,0.000424,120]
[394667813,1763850802923,-86686.21056635,0.00042696,30]
[394667814,1763850802947,-151.0,0.000427,120]
[394667815,1763850802971,-2500.0,0.000429,120]
[394667816,1763850802994,-511.42675634,0.00042999,120]
[394667817,1763850803018,-1100.0,0.00043,30]
[394667818,1763850803042,-1000.0,0.00043,120]
[394667819,1763850803067,-1500.0,0.00043,120]
[394667820,1763850803090,-1000.0,0.00043,120]
[394667821,1763850803113,-10000.0,0.00043,120]
[394667822,1763850803136,-300.0,0.00043,120]
[394667823,1763850803159,-2000.0,0.00043,120]
[394667824,1763850803182,-150.0,0.00043,120]
[394667825,1763850803207,-200.0,0.00043,120]
[394667826,1763850803231,-3297.3317,0.0004322,30]
[394667827,1763850803258,-1024.64,0.000433,120]
[394667828,1763850803283,-20012.99935632,0.000435,120]
[394667829,1763850803307,-1401.939348,0.00043567,90]
[394667830,1763850803332,-151.0,0.000436,120]
[394667831,1763850803355,-5000.0,0.000438,60]
[394667832,1763850803380,-5000.0,0.000438,90]
[394667833,1763850803404,-150.3730051,0.000438,120]
[394667834,1763850803428,-1000.0,0.000438,90]
[394667835,1763850803452,-1000.0,0.000438,90]
[394667836,1763850803476,-459.72,0.000438,120]
[394667837,1763850803500,-550.26499098,0.000439,120]
[394667838,1763850803524,-1000.0,0.00044,120]
[394667839,1763850803548,-1000.0,0.00044,120]
[394667840,1763850803575,-1000.0,0.00044,120]
[394667841,1763850803599,-500.0,0.00044,120]
[394667842,1763850803623,-1219.52084,0.00044,120]
[394667843,1763850803648,-300.0,0.00044,120]
[394667844,1763850803677,-2000.0,0.00044,120]
[394667845,1763850803701,-150.0,0.00044,120]
[394667846,1763850803726,-199.0,0.00044109,30]
[394667847,1763850803751,-151.0,0.000444,120]
[394667848,1763850803775,-253.69,0.000446,120]
[394667849,1763850803800,-1122.89023758,0.000449,120]
[394667850,1763850803825,-2500.0,0.000449,120]
[394667851,1763850804014,-1000.0,0.00045,120]
[394667852,1763850804038,-10000.0,0.00045,30]
[394667853,1763850804064,-1010.10380041,0.00045,120]
[394667854,1763850804089,-1362.35746053,0.00045,120]
[394667855,1763850804113,-1852.93515578,0.00045,120]
[394667856,1763850804137,-1932.55707985,0.00045,120]
[394667857,1763850804161,-3618.92847807,0.00045,45]
[394667858,1763850804187,-1000.0,0.00045,120]
[394667859,1763850804210,-50000.0,0.00045,120]
[394667860,1763850804234,-536.17956675,0.00045,120]
[394667861,1763850804258,-2134.25043857,0.00045,120]
[394667862,1763850804283,-957.54,0.00045,120]
[394667863,1763850804306,-500.0,0.00045,120]
[394667864,1763850804331,-300.0,0.00045,120]
[394667865,1763850804355,-537.68239521,0.00045,30]
[394667866,1763850804379,-5000.0,0.00045,45]
[394667867,1763850804403,-2498.85138318,0.00045,120]
[394667868,1763850804427,-150.0,0.00045,120]
[394667869,1763850804450,-4100.0,0.00045,30]
[394667870,1763850804474,-205.725062,0.00045,56]
[394667871,1763850804497,-6213.107666,0.00045205,120]
[394667872,1763850804521,-151.0,0.000453,120]
[394667873,1763850804544,-265660.1647,0.0004544,30]
[394667874,1763850804569,-199.0,0.00045479,30]
[394667875,1763850804592,-56070.9176949,0.00045556,30]
[394667876,1763850804620,-269.96166156,0.000458,120]
[394667877,1763850804650,-50390.99204376,0.000459,120]
[394667878,1763850804673,-2500.0,0.000459,120]
[394667879,1763850804697,-300.0,0.00046,120]
[394667880,1763850804719,-27384.77027402,0.00046,30]
[394667881,1763850804744,-500.0,0.00046,120]
[394667882,1763850804768,-300.0,0.00046,120]
[394667883,1763850804791,-3855.53,0.00046,120]
[394667884,1763850804815,-10870.0,0.00046,120]
[394667885,1763850804838,-150.0,0.00046,120]
[394667886,1763850804863,-151.0,0.000461,120]
[394667887,1763850804890,-1444.0,0.00046466,120]
[394667888,1763850804925,-1003.41017606,0.00046575,120]
[394667889,1763850804950,-500.0,0.00046575,120]
[394667890,1763850804973,-484.87570842,0.00046575,120]
[394667891,1763850804997,-500.0,0.00046575,120]
[394667892,1763850805021,-500.0,0.00046575,120]
[394667893,1763850805046,-500.0,0.00046575,120]
[394667894,1763850805069,-500.0,0.00046575,120]
[394667895,1763850805093,-500.0,0.00046575,120]
[394667896,1763850805116,-500.0,0.00046575,120]
[394667897,1763850805139,-1000.0,0.00046575,30]
[394667898,1763850805161,-500.0,0.00046575,120]
[394667899,1763850805185,-500.0,0.00046575,120]
[394667900,1763850805207,-510.11109669,0.00046575,120]
[394667901,1763850805231,-500.0,0.00046575,120]
[394667902,1763850805254,-1085.03,0.00046575,120]
[394667903,1763850805278,-516.66955175,0.00046575,120]
[394667904,1763850805302,-510.09940423,0.00046575,120]
[394667905,1763850805325,-522.0046839,0.00046575,120]
[394667906,1763850805348,-500.0,0.00046575,30]
[394667907,1763850805376,-504.69359564,0.00046575,120]
[394667908,1763850805400,-525.39364807,0.00046575,120]
[394667909,1763850805425,-500.0,0.00046575,120]
[394667910,1763850805449,-327.49106973,0.00046575,120]
[394667911,1763850805473,-518.10764489,0.00046575,120]
[394667912,1763850805496,-507.4667717,0.00046575,120]
[394667913,1763850805519,-529.69255829,0.00046575,120]
[394667914,1763850805543,-500.0,0.00046575,120]
[394667915,1763850805567,-547.7512803,0.00046575,120]
[394667916,1763850805589,-500.0,0.00046575,120]
[394667917,1763850805613,-206.04476876,0.00046575,120]
[394667918,1763850805637,-505.94522974,0.00046575,120]
[394667919,1763850805664,-1454.2,0.00046575,120]
[394667920,1763850805687,-500.0,0.00046575,120]
[394667921,1763850805713,-500.0,0.00046575,120]
[394667922,1763850805736,-500.0,0.00046575,120]
[394667923,1763850805759,-633.79306474,0.00046575,120]
[394667924,1763850805785,-500.0,0.00046575,120]
[394667925,1763850805810,-500.0,0.00046575,120]
[394667926,1763850805833,-500.0,0.00046575,120]
[394667927,1763850805858,-500.0,0.00046575,120]
[394667928,1763850805882,-2430.68,0.00046575,120]
[394667929,1763850805905,-521.24824227,0.00046575,120]
[394667930,1763850805930,-500.0,0.00046575,120]
[394667931,1763850805954,-308.28108393,0.00046575,120]
[394667932,1763850805978,-512.53762706,0.00046575,120]
[394667933,1763850806002,-500.0,0.00046575,120]
[394667934,1763850806026,-500.0,0.00046575,120]
[394667935,1763850806049,-500.0,0.00046575,120]
[394667936,1763850806072,-500.0,0.00046575,120]
[394667937,1763850806095,-500.0,0.00046575,120]
[394667938,1763850806118,-200.05277365,0.00046575,120]
[394667939,1763850806141,-500.0,0.00046575,120]
[394667940,1763850806164,-500.0,0.00046575,120]
[394667941,1763850806186,-500.0,0.00046575,120]
[394667942,1763850806209,-509.92219274,0.00046575,120]
[394667943,1763850806232,-508.91430304,0.00046575,120]
[394667944,1763850806255,-500.0,0.00046575,120]
[394667945,1763850806278,-511.44194991,0.00046575,120]
[394667946,1763850806471,-508.2032318,0.00046575,120]
[394667947,1763850806495,-709.47,0.00046575,120]
[394667948,1763850806519,-500.0,0.00046575,120]
[394667949,1763850806542,-500.0,0.00046575,120]
[394667950,1763850806568,-644.70235348,0.00046575,120]
[394667951,1763850806592,-500.0,0.00046575,120]
[394667952,1763850806617,-528.21451791,0.00046575,120]
[394667953,1763850806640,-509.43602241,0.00046575,120]
[394667954,1763850806670,-500.0,0.00046575,120]
[394667955,1763850806694,-500.0,0.00046575,120]
[394667956,1763850806717,-500.0,0.00046575,120]
[394667957,1763850806744,-522.06007263,0.00046575,120]
[394667958,1763850806768,-251.62730489,0.00046575,120]
[394667959,1763850806791,-500.0,0.00046575,120]
[394667960,1763850806816,-500.0,0.00046575,120]
[394667961,1763850806840,-500.0,0.00046575,120]
[394667962,1763850806865,-518.67241355,0.00046575,120]
[394667963,1763850806889,-500.0,0.00046575,120]
[394667964,1763850806913,-520.13857351,0.00046575,120]
[394667965,1763850806937,-500.0,0.00046575,120]
[394667966,1763850806960,-500.0,0.00046575,120]
[394667967,1763850806985,-525.17504257,0.00046575,120]
[394667968,1763850807009,-545.5455278,0.00046575,120]
[394667969,1763850807034,-500.0,0.00046575,120]
[394667970,1763850807061,-500.0,0.00046575,120]
[394667971,1763850807088,-507.59188018,0.00046575,120]
[394667972,1763850807113,-507.21898682,0.00046575,120]
[394667973,1763850807138,-1684.24,0.00046575,120]
[394667974,1763850807162,-500.0,0.00046575,120]
[394667975,1763850807187,-500.0,0.00046575,120]
[394667976,1763850807210,-500.0,0.00046575,120]
[394667977,1763850807234,-531.15287789,0.00046575,120]
[394667978,1763850807259,-500.0,0.00046575,120]
[394667979,1763850807282,-564.14,0.00046575,120]
[394667980,1763850807306,-518.89622228,0.00046575,120]
[394667981,1763850807330,-520.25226856,0.00046575,120]
[394667982,1763850807354,-500.0,0.00046575,120]
[394667983,1763850807378,-500.0,0.00046575,120]
[394667984,1763850807402,-500.0,0.00046575,120]
[394667985,1763850807425,-500.0,0.00046575,120]
[394667986,1763850807448,-500.0,0.00046575,120]
[394667987,1763850807472,-500.0,0.00046575,120]
[394667988,1763850807496,-500.0,0.00046575,120]
[394667989,1763850807519,-500.0,0.00046575,120]
[394667990,1763850807542,-500.0,0.00046575,120]
[394667991,1763850807566,-500.0,0.00046575,120]
[394667992,1763850807590,-528.95658107,0.00046575,120]
[394667993,1763850807614,-500.0,0.00046575,120]
[394667994,1763850807638,-500.0,0.00046575,120]
[394667995,1763850807663,-500.0,0.00046575,120]
[394667996,1763850807686,-529.00386114,0.00046575,120]
[394667997,1763850807711,-500.0,0.00046575,120]
[394667998,1763850807737,-500.0,0.00046575,120]
[394667999,1763850807762,-500.0,0.00046575,120]
[394668000,1763850807787,-294.73822437,0.00046575,120]
[394668001,1763850807812,-522.19219128,0.00046575,120]
[394668002,1763850807836,-515.6229108,0.00046575,120]
[394668003,1763850807860,-500.0,0.00046575,120]
[394668004,1763850807884,-500.0,0.00046575,120]
[394668005,1763850807909,-500.0,0.00046575,120]
[394668006,1763850807933,-161.35107761,0.00046575,120]
[394668007,1763850807958,-637.19505348,0.00046575,120]
[394668008,1763850807982,-500.0,0.00046575,120]
[394668009,1763850808006,-500.0,0.00046575,120]
[394668010,1763850808031,-515.13144988,0.00046575,120]
[394668011,1763850808054,-500.0,0.00046575,30]
[394668012,1763850808077,-500.0,0.00046575,120]
[394668013,1763850808102,-500.0,0.00046575,120]
[394668014,1763850808125,-615.3,0.00046575,120]
[394668015,1763850808148,-500.0,0.00046575,120]
[394668016,1763850808171,-500.0,0.00046575,120]
[394668017,1763850808194,-500.0,0.00046575,120]
[394668018,1763850808217,-776.39,0.00046575,120]
[394668019,1763850808239,-500.0,0.00046575,120]
[394668020,1763850808263,-500.0,0.00046575,120]
[394668021,1763850808286,-500.0,0.00046575,120]
[394668022,1763850808311,-500.0,0.00046575,120]
[394668023,1763850808334,-500.0,0.00046575,120]
[394668024,1763850808358,-391.27353882,0.00046575,120]
[394668025,1763850808383,-500.0,0.00046575,120]
[394668026,1763850808407,-500.0,0.00046575,120]
[394668027,1763850808431,-500.0,0.00046575,120]
[394668028,1763850808454,-500.0,0.00046575,120]
[394668029,1763850808477,-500.0,0.00046575,120]
[394668030,1763850808501,-500.0,0.00046575,30]
[394668031,1763850808524,-517.38732367,0.00046575,120]
[394668032,1763850808548,-500.0,0.00046575,120]
[394668033,1763850808572,-401.39356256,0.00046575,120]
[394668034,1763850808595,-500.0,0.00046575,120]
[394668035,1763850808618,-1335.23,0.00046575,120]
[394668036,1763850808641,-500.0,0.00046575,120]
[394668037,1763850808669,-468.11452398,0.00046575,120]
[394668038,1763850808692,-500.0,0.00046575,120]
[394668039,1763850808716,-500.0,0.00046575,120]
[394668040,1763850808742,-478.6161416,0.00046575,120]
[394668041,1763850808919,-572.1,0.00046575,120]
[394668042,1763850808945,-530.73854219,0.00046575,120]
[394668043,1763850808970,-500.0,0.00046575,120]
[394668044,1763850808995,-500.0,0.00046575,120]
[394668045,1763850809019,-500.0,0.00046575,120]
[394668046,1763850809042,-505.55462971,0.00046575,120]
[394668047,1763850809066,-500.0,0.00046575,120]
[394668048,1763850809089,-500.0,0.00046575,120]
[394668049,1763850809112,-500.0,0.00046575,120]
[394668050,1763850809136,-518.53976643,0.00046575,120]
[394668051,1763850809159,-500.0,0.00046575,120]
[394668052,1763850809182,-513.06280425,0.00046575,120]
[394668053,1763850809205,-500.0,0.00046575,120]
[394668054,1763850809233,-500.0,0.00046575,120]
[394668055,1763850809258,-500.0,0.00046575,120]
[394668056,1763850809282,-507.5830781,0.00046575,120]
[394668057,1763850809307,-608.8551706,0.00046575,120]
[394668058,1763850809331,-500.0,0.00046575,120]
[394668059,1763850809356,-500.0,0.00046575,120]
[394668060,1763850809380,-500.0,0.00046575,120]
[394668061,1763850809406,-500.0,0.00046575,120]
[394668062,1763850809432,-500.0,0.00046575,120]
[394668063,1763850809457,-500.0,0.00046575,120]
[394668064,1763850809482,-500.0,0.00046575,120]
[394668065,1763850809507,-190.65317758,0.00046575,120]
[394668066,1763850809531,-723.67,0.00046575,120]
[394668067,1763850809556,-500.0,0.00046575,120]
[394668068,1763850809581,-500.0,0.00046575,120]
[394668069,1763850809605,-500.0,0.00046575,120]
[394668070,1763850809631,-541.57520478,0.00046575,120]
[394668071,1763850809660,-500.0,0.00046575,120]
[394668072,1763850809684,-500.0,0.00046575,120]
[394668073,1763850809709,-517.46291162,0.00046575,120]
[394668074,1763850809734,-500.0,0.00046575,120]
[394668075,1763850809758,-500.0,0.00046575,120]
[394668076,1763850809781,-500.0,0.00046575,120]
[394668077,1763850809805,-500.0,0.00046575,120]
[394668078,1763850809830,-500.0,0.00046575,120]
[394668079,1763850809854,-500.0,0.00046575,120]
[394668080,1763850809878,-500.0,0.00046575,120]
[394668081,1763850809902,-500.0,0.00046575,120]
[394668082,1763850809927,-500.0,0.00046575,120]
[394668083,1763850809952,-500.0,0.00046575,120]
[394668084,1763850809977,-500.0,0.00046575,120]
[394668085,1763850810000,-500.0,0.00046575,120]
[394668086,1763850810025,-500.0,0.00046575,120]
[394668087,1763850810048,-500.0,0.00046575,120]
[394668088,1763850810072,-500.0,0.00046575,120]
[394668089,1763850810095,-536.89,0.00046575,120]
[394668090,1763850810118,-500.0,0.00046575,120]
[394668091,1763850810144,-500.0,0.00046575,120]
[394668092,1763850810168,-500.0,0.00046575,120]
[394668093,1763850810191,-500.0,0.00046575,120]
[394668094,1763850810216,-500.0,0.00046575,120]
[394668095,1763850810240,-500.0,0.00046575,120]
[394668096,1763850810263,-500.0,0.00046575,120]
[394668097,1763850810286,-500.0,0.00046575,120]
[394668098,1763850810310,-500.0,0.00046575,120]
[394668099,1763850810334,-500.0,0.00046575,120]
[394668100,1763850810357,-500.0,0.00046575,120]
[394668101,1763850810382,-500.0,0.00046575,120]
[394668102,1763850810406,-500.0,0.00046575,120]
[394668103,1763850810430,-1696.69,0.00046575,120]
[394668104,1763850810453,-500.0,0.00046575,120]
[394668105,1763850810477,-2331.83,0.00046575,120]
[394668106,1763850810500,-500.0,0.00046575,120]
[394668107,1763850810524,-500.0,0.00046575,120]
[394668108,1763850810548,-500.0,0.00046575,30]
[394668109,1763850810572,-500.0,0.00046575,120]
[394668110,1763850810595,-500.0,0.00046575,120]
[394668111,1763850810620,-635.2,0.00046575,120]
[394668112,1763850810644,-500.0,0.00046575,120]
[394668113,1763850810671,-500.0,0.00046575,120]
[394668114,1763850810696,-500.0,0.00046575,120]
[394668115,1763850810719,-500.0,0.00046575,120]
[394668116,1763850810744,-526.86314846,0.00046575,120]
[394668117,1763850810768,-500.0,0.00046575,120]
[394668118,1763850810792,-636.73,0.00046575,120]
[394668119,1763850810815,-500.0,0.00046575,120]
[394668120,1763850810839,-500.0,0.00046575,120]
[394668121,1763850810863,-500.0,0.00046575,120]